[Event "*** SCC Grand Prix: Titled Tuesday Blitz"]
[Site "Chess.com"]
[Date "2020.08.04"]
[Round "1"]
[White "Koksik_13"]
[Black "serena-maria"]
[Result "1-0"]
[WhiteElo "2584"]
[BlackElo "2255"]
[TimeControl "180+1"]
[EndTime "13:51:18 PDT"]
[Termination "Koksik_13 won by resignation"]

1. d3 {[%clk 0:02:37.5]} 1... Nf6 {[%clk 0:02:54.9]} 2. d4 {[%clk 0:02:36.8]}
2... g6 {[%clk 0:02:53.9]} 3. Nc3 {[%clk 0:02:37.7]} 3... d5 {[%clk 0:02:53.6]}
4. Bf4 {[%clk 0:02:37.3]} 4... Bg7 {[%clk 0:02:50.2]} 5. e3 {[%clk 0:02:36.6]}
5... c5 {[%clk 0:02:50]} 6. Nf3 {[%clk 0:02:35.2]} 6... O-O {[%clk 0:02:49.6]}
7. Be2 {[%clk 0:02:33.4]} 7... Nc6 {[%clk 0:02:49.6]} 8. Ne5 {[%clk 0:02:32.9]}
8... Nd7 {[%clk 0:02:30.4]} 9. Nxd7 {[%clk 0:02:24]} 9... Bxd7 {[%clk
0:02:26.6]} 10. dxc5 {[%clk 0:02:18.5]} 10... e5 {[%clk 0:01:53.7]} 11. Bg3
{[%clk 0:02:16.2]} 11... d4 {[%clk 0:01:49.8]} 12. exd4 {[%clk 0:02:02.4]} 12...
exd4 {[%clk 0:01:46]} 13. Ne4 {[%clk 0:02:02.7]} 13... Bf5 {[%clk 0:01:18.3]}
14. Nd6 {[%clk 0:02:01.7]} 14... Qa5+ {[%clk 0:01:17.2]} 15. Qd2 {[%clk
0:02:01.3]} 15... Bxc2 {[%clk 0:01:03.4]} 16. Qxa5 {[%clk 0:01:58.6]} 16... Nxa5
{[%clk 0:01:04.3]} 17. Kd2 {[%clk 0:01:52.7]} 17... Bf5 {[%clk 0:00:52.3]} 18.
Bd3 {[%clk 0:01:52.8]} 18... Bxd3 {[%clk 0:00:49.1]} 19. Kxd3 {[%clk 0:01:53.7]}
19... b6 {[%clk 0:00:43.3]} 20. Rac1 {[%clk 0:01:38.8]} 20... bxc5 {[%clk
0:00:22.5]} 21. Rxc5 {[%clk 0:01:39.7]} 21... Rfd8 {[%clk 0:00:03.3]} 22. Rxa5
{[%clk 0:01:38.1]} 22... Bf8 {[%clk 0:00:03.7]} 23. Rd5 {[%clk 0:01:37.5]} 23...
Rab8 {[%clk 0:00:03.4]} 24. b3 {[%clk 0:01:37.2]} 24... Rb6 {[%clk 0:00:03.7]}
25. Re1 {[%clk 0:01:09.4]} 25... Bxd6 {[%clk 0:00:03.3]} 26. Re4 {[%clk
0:01:10.2]} 26... Kg7 {[%clk 0:00:02.4]} 27. Rexd4 {[%clk 0:01:10.1]} 27... Bc7
{[%clk 0:00:02.6]} 28. Bxc7 {[%clk 0:01:09.5]} 28... Rxd5 {[%clk 0:00:02.8]} 29.
Bxb6 {[%clk 0:01:10]} 29... Rxd4+ {[%clk 0:00:03.3]} 30. Bxd4+ {[%clk
0:01:09.9]} 30... Kf8 {[%clk 0:00:03.8]} 31. Bxa7 {[%clk 0:01:10.8]} 1-0

[Event "*** SCC Grand Prix: Titled Tuesday Blitz"]
[Site "Chess.com"]
[Date "2020.08.04"]
[Round "1"]
[White "Isajevsky_Anton"]
[Black "ErikRonka"]
[Result "1-0"]
[WhiteElo "2583"]
[BlackElo "2253"]
[TimeControl "180+1"]
[EndTime "13:51:19 PDT"]
[Termination "Isajevsky_Anton won by checkmate"]

1. c4 {[%clk 0:03:00.8]} 1... c6 {[%clk 0:02:59.6]} 2. Nf3 {[%clk 0:03:00]} 2...
d5 {[%clk 0:03:00.5]} 3. e3 {[%clk 0:02:59.8]} 3... Nf6 {[%clk 0:03:00.2]} 4.
Nc3 {[%clk 0:02:59.4]} 4... Nbd7 {[%clk 0:03:00.4]} 5. cxd5 {[%clk 0:02:58.7]}
5... cxd5 {[%clk 0:02:59.9]} 6. d4 {[%clk 0:02:58.5]} 6... e6 {[%clk 0:02:53.2]}
7. Bd3 {[%clk 0:02:57.6]} 7... Bd6 {[%clk 0:02:52]} 8. O-O {[%clk 0:02:57]} 8...
O-O {[%clk 0:02:52.5]} 9. b3 {[%clk 0:02:49.6]} 9... a6 {[%clk 0:02:47]} 10. Bb2
{[%clk 0:02:48.2]} 10... b5 {[%clk 0:02:47]} 11. Ne2 {[%clk 0:02:41.5]} 11...
Qe7 {[%clk 0:02:44.1]} 12. Ne5 {[%clk 0:02:39.9]} 12... Bb7 {[%clk 0:02:43.8]}
13. f3 {[%clk 0:02:29.6]} 13... Rfc8 {[%clk 0:02:32.4]} 14. a4 {[%clk 0:02:19]}
14... b4 {[%clk 0:02:19.6]} 15. g4 {[%clk 0:01:56.2]} 15... Ne8 {[%clk
0:01:52.5]} 16. Ng3 {[%clk 0:01:46.3]} 16... f6 {[%clk 0:01:51.4]} 17. Nxd7
{[%clk 0:01:46]} 17... Qxd7 {[%clk 0:01:52.3]} 18. f4 {[%clk 0:01:45.8]} 18...
a5 {[%clk 0:01:42.4]} 19. Qe2 {[%clk 0:01:43.6]} 19... Nc7 {[%clk 0:01:40.1]}
20. Rac1 {[%clk 0:01:33.1]} 20... Ne8 {[%clk 0:01:38.5]} 21. Kg2 {[%clk
0:01:27.2]} 21... Rxc1 {[%clk 0:01:37.5]} 22. Rxc1 {[%clk 0:01:26.6]} 22... Rc8
{[%clk 0:01:38]} 23. Rf1 {[%clk 0:01:13.7]} 23... Nc7 {[%clk 0:01:19.6]} 24. h4
{[%clk 0:01:09.5]} 24... Ra8 {[%clk 0:01:13.5]} 25. Rc1 {[%clk 0:01:08]} 25...
Na6 {[%clk 0:01:06.7]} 26. h5 {[%clk 0:01:04.1]} 26... Nb8 {[%clk 0:01:06.6]}
27. Qc2 {[%clk 0:01:01.1]} 27... Ba6 {[%clk 0:01:03.1]} 28. Bxh7+ {[%clk
0:01:00.5]} 28... Kh8 {[%clk 0:01:02.1]} 29. Bg6 {[%clk 0:00:56.3]} 29... Qe7
{[%clk 0:00:56.2]} 30. Rh1 {[%clk 0:00:53.9]} 30... Nd7 {[%clk 0:00:53.2]} 31.
h6 {[%clk 0:00:54.3]} 31... Rc8 {[%clk 0:00:52.2]} 32. hxg7+ {[%clk 0:00:38.2]}
32... Kxg7 {[%clk 0:00:53.1]} 33. Rh7+ {[%clk 0:00:38]} 33... Kg8 {[%clk
0:00:53.6]} 34. Qb1 {[%clk 0:00:35.5]} 34... Qd8 {[%clk 0:00:49.7]} 35. Rh8+
{[%clk 0:00:27.8]} 35... Kxh8 {[%clk 0:00:48.9]} 36. Qh1+ {[%clk 0:00:27.6]}
36... Kg8 {[%clk 0:00:48.5]} 37. Qh7+ {[%clk 0:00:28.1]} 37... Kf8 {[%clk
0:00:48.5]} 38. Qf7# {[%clk 0:00:28.4]} 1-0

[Event "*** SCC Grand Prix: Titled Tuesday Blitz"]
[Site "Chess.com"]
[Date "2020.08.04"]
[Round "1"]
[White "OK97"]
[Black "pooh2012"]
[Result "1-0"]
[WhiteElo "2797"]
[BlackElo "2405"]
[TimeControl "180+1"]
[EndTime "13:51:23 PDT"]
[Termination "OK97 won by resignation"]

1. Nf3 {[%clk 0:03:00.9]} 1... Nf6 {[%clk 0:02:58.7]} 2. g3 {[%clk 0:02:59.1]}
2... b5 {[%clk 0:02:56.8]} 3. e3 {[%clk 0:02:55.6]} 3... a6 {[%clk 0:02:50.9]}
4. a4 {[%clk 0:02:54.1]} 4... b4 {[%clk 0:02:46.8]} 5. Bg2 {[%clk 0:02:53.9]}
5... Bb7 {[%clk 0:02:38.6]} 6. O-O {[%clk 0:02:54.2]} 6... e6 {[%clk 0:02:22]}
7. d4 {[%clk 0:02:54.2]} 7... Be7 {[%clk 0:02:19.4]} 8. c4 {[%clk 0:02:51.3]}
8... bxc3 {[%clk 0:02:18.5]} 9. Nxc3 {[%clk 0:02:48.9]} 9... O-O {[%clk
0:02:12.9]} 10. Qc2 {[%clk 0:02:38.2]} 10... d6 {[%clk 0:02:02.4]} 11. e4 {[%clk
0:02:36.6]} 11... Nbd7 {[%clk 0:01:58]} 12. Re1 {[%clk 0:02:27]} 12... e5 {[%clk
0:01:46]} 13. d5 {[%clk 0:02:18.4]} 13... a5 {[%clk 0:01:35.9]} 14. Be3 {[%clk
0:02:02.6]} 14... Ng4 {[%clk 0:01:22.9]} 15. Bd2 {[%clk 0:02:02.6]} 15... Nc5
{[%clk 0:01:20.5]} 16. h3 {[%clk 0:02:02.7]} 16... Nf6 {[%clk 0:01:20.3]} 17.
Be3 {[%clk 0:01:40.8]} 17... Nfd7 {[%clk 0:01:18.4]} 18. Nd2 {[%clk 0:01:36.1]}
18... Ba6 {[%clk 0:01:16.7]} 19. Nb5 {[%clk 0:01:35.3]} 19... Qb8 {[%clk
0:00:47.8]} 20. Bf1 {[%clk 0:01:33.1]} 20... Rc8 {[%clk 0:00:36.8]} 21. Nc4
{[%clk 0:01:27]} 21... Bxb5 {[%clk 0:00:20.1]} 22. axb5 {[%clk 0:01:26.8]} 22...
a4 {[%clk 0:00:21]} 23. Ra3 {[%clk 0:01:12.9]} 23... Rf8 {[%clk 0:00:02.7]} 24.
Nd2 {[%clk 0:00:54]} 24... g6 {[%clk 0:00:02.5]} 25. Rea1 {[%clk 0:00:50.7]}
25... f5 {[%clk 0:00:02.2]} 26. exf5 {[%clk 0:00:51.2]} 26... gxf5 {[%clk
0:00:01.5]} 27. Qd1 {[%clk 0:00:49]} 27... Kh8 {[%clk 0:00:01.5]} 28. b4 {[%clk
0:00:47.6]} 28... Nf6 {[%clk 0:00:02]} 29. bxc5 {[%clk 0:00:47.6]} 1-0

[Event "*** SCC Grand Prix: Titled Tuesday Blitz"]
[Site "Chess.com"]
[Date "2020.08.04"]
[Round "1"]
[White "Evgeny81"]
[Black "Ural_bogatyr"]
[Result "1-0"]
[WhiteElo "2734"]
[BlackElo "2365"]
[TimeControl "180+1"]
[EndTime "13:51:25 PDT"]
[Termination "Evgeny81 won by resignation"]

1. d4 {[%clk 0:03:00.9]} 1... Nf6 {[%clk 0:02:59.6]} 2. c4 {[%clk 0:03:00.3]}
2... g6 {[%clk 0:02:59.8]} 3. Nc3 {[%clk 0:02:59.7]} 3... Bg7 {[%clk 0:03:00.1]}
4. e4 {[%clk 0:02:59.4]} 4... O-O {[%clk 0:03:00.2]} 5. Nf3 {[%clk 0:03:00]}
5... d6 {[%clk 0:03:00.2]} 6. Be2 {[%clk 0:03:00.6]} 6... e5 {[%clk 0:03:00.4]}
7. d5 {[%clk 0:03:01.3]} 7... a5 {[%clk 0:03:00.2]} 8. h3 {[%clk 0:03:01.6]}
8... Na6 {[%clk 0:02:59.4]} 9. Bg5 {[%clk 0:03:01.7]} 9... h6 {[%clk 0:02:59.1]}
10. Be3 {[%clk 0:03:00.9]} 10... Nc5 {[%clk 0:02:39.5]} 11. Nd2 {[%clk
0:02:59.9]} 11... Qe8 {[%clk 0:02:32.6]} 12. b3 {[%clk 0:02:50.5]} 12... Bd7
{[%clk 0:02:30.2]} 13. a3 {[%clk 0:02:48.7]} 13... c6 {[%clk 0:02:21.5]} 14. O-O
{[%clk 0:02:45.4]} 14... Rb8 {[%clk 0:02:09.3]} 15. b4 {[%clk 0:02:40.5]} 15...
axb4 {[%clk 0:02:06.5]} 16. axb4 {[%clk 0:02:41.4]} 16... Na6 {[%clk 0:02:06.7]}
17. dxc6 {[%clk 0:02:41.1]} 17... Be6 {[%clk 0:01:50.5]} 18. b5 {[%clk
0:02:32.6]} 18... Nc5 {[%clk 0:01:48.3]} 19. c7 {[%clk 0:02:16.3]} 19... Rc8
{[%clk 0:01:41.9]} 20. b6 {[%clk 0:02:16.5]} 20... Nfd7 {[%clk 0:01:34]} 21. Rb1
{[%clk 0:02:06.8]} 21... f5 {[%clk 0:01:32.7]} 22. Nb5 {[%clk 0:02:06]} 22...
Qe7 {[%clk 0:01:03.9]} 23. Na7 {[%clk 0:02:01.1]} 23... f4 {[%clk 0:00:56.6]}
24. Bxc5 {[%clk 0:02:00.4]} 24... Nxc5 {[%clk 0:00:57.5]} 25. Nxc8 {[%clk
0:01:54.3]} 25... Bxc8 {[%clk 0:00:58.4]} 26. Bg4 {[%clk 0:01:53.8]} 26... Ne6
{[%clk 0:00:57.7]} 27. Ra1 {[%clk 0:01:39.8]} 27... h5 {[%clk 0:00:56.9]} 28.
Bxe6+ {[%clk 0:01:34.8]} 28... Qxe6 {[%clk 0:00:57.8]} 29. c5 {[%clk 0:01:31]}
29... Kh7 {[%clk 0:00:47.4]} 30. Qb3 {[%clk 0:01:27.1]} 30... Qe7 {[%clk
0:00:40.4]} 31. c6 {[%clk 0:01:18.9]} 31... f3 {[%clk 0:00:36.3]} 32. Nxf3
{[%clk 0:01:17.6]} 32... Be6 {[%clk 0:00:28.3]} 33. Qc3 {[%clk 0:01:08.8]} 33...
d5 {[%clk 0:00:26.1]} 34. cxb7 {[%clk 0:01:06.8]} 34... d4 {[%clk 0:00:20.4]}
35. Qa3 {[%clk 0:01:03.3]} 35... Qd7 {[%clk 0:00:14.5]} 36. Ng5+ {[%clk
0:01:01.7]} 1-0

[Event "*** SCC Grand Prix: Titled Tuesday Blitz"]
[Site "Chess.com"]
[Date "2020.08.04"]
[Round "1"]
[White "Hrant_ChessMood"]
[Black "KingCrusher275"]
[Result "1-0"]
[WhiteElo "2853"]
[BlackElo "2422"]
[TimeControl "180+1"]
[EndTime "13:51:26 PDT"]
[Termination "Hrant_ChessMood won by resignation"]

1. d4 {[%clk 0:02:57.8]} 1... d5 {[%clk 0:02:59.5]} 2. c4 {[%clk 0:02:57]} 2...
e6 {[%clk 0:02:59.4]} 3. Nf3 {[%clk 0:02:54]} 3... Nf6 {[%clk 0:02:59.3]} 4. Nc3
{[%clk 0:02:52.5]} 4... Be7 {[%clk 0:02:59.2]} 5. g3 {[%clk 0:02:49.8]} 5... O-O
{[%clk 0:02:52.3]} 6. Bg2 {[%clk 0:02:49.5]} 6... Nbd7 {[%clk 0:02:46.5]} 7. Qd3
{[%clk 0:02:47.7]} 7... b6 {[%clk 0:02:40.8]} 8. cxd5 {[%clk 0:02:43.9]} 8...
exd5 {[%clk 0:02:40.8]} 9. O-O {[%clk 0:02:43.1]} 9... Bb7 {[%clk 0:02:40.7]}
10. Ne5 {[%clk 0:02:41.5]} 10... Re8 {[%clk 0:02:31.5]} 11. Bf4 {[%clk
0:02:38.9]} 11... Bd6 {[%clk 0:02:29.5]} 12. Nxd7 {[%clk 0:02:33]} 12... Qxd7
{[%clk 0:02:29.2]} 13. Bxd6 {[%clk 0:02:29.3]} 13... Qxd6 {[%clk 0:02:30.1]} 14.
Rac1 {[%clk 0:02:25.6]} 14... a6 {[%clk 0:02:26.4]} 15. e3 {[%clk 0:02:19.8]}
15... Rad8 {[%clk 0:02:22.8]} 16. a3 {[%clk 0:02:17.8]} 16... Re7 {[%clk
0:02:11.5]} 17. Rc2 {[%clk 0:02:16.6]} 17... c5 {[%clk 0:02:04.8]} 18. dxc5
{[%clk 0:02:09.2]} 18... bxc5 {[%clk 0:02:05]} 19. Rd1 {[%clk 0:02:09.6]} 19...
Red7 {[%clk 0:01:56.4]} 20. Na4 {[%clk 0:02:03.8]} 20... Rc7 {[%clk 0:01:47.1]}
21. Rdc1 {[%clk 0:01:59.2]} 21... Rdc8 {[%clk 0:01:45.7]} 22. Bh3 {[%clk
0:01:49.2]} 22... Nd7 {[%clk 0:01:42.9]} 23. Bxd7 {[%clk 0:01:45.6]} 23... Qxd7
{[%clk 0:01:26.7]} 24. Nxc5 {[%clk 0:01:31.1]} 24... Qe7 {[%clk 0:01:04.1]} 25.
Nxb7 {[%clk 0:01:12]} 25... Rxc2 {[%clk 0:01:03.3]} 26. Rxc2 {[%clk 0:01:12.9]}
26... Rxc2 {[%clk 0:01:03.5]} 27. Qxc2 {[%clk 0:01:11.9]} 27... Qxb7 {[%clk
0:01:04.1]} 28. b4 {[%clk 0:01:11.1]} 28... h6 {[%clk 0:01:01.8]} 29. Qc5 {[%clk
0:01:07.7]} 29... Qd7 {[%clk 0:00:59.7]} 30. Kg2 {[%clk 0:00:56.4]} 30... Qf5
{[%clk 0:00:58.5]} 31. Qd4 {[%clk 0:00:52.9]} 31... Qe6 {[%clk 0:00:52.2]} 32.
a4 {[%clk 0:00:52.3]} 32... Qc6 {[%clk 0:00:52.1]} 33. a5 {[%clk 0:00:47.6]}
33... Qe6 {[%clk 0:00:46.8]} 34. h4 {[%clk 0:00:44.9]} 34... Kh7 {[%clk
0:00:34.5]} 35. Qd3+ {[%clk 0:00:42.1]} 35... Kh8 {[%clk 0:00:32.5]} 36. b5
{[%clk 0:00:40.4]} 36... axb5 {[%clk 0:00:31.7]} 37. Qxb5 {[%clk 0:00:41.3]}
37... Qe5 {[%clk 0:00:31.7]} 38. a6 {[%clk 0:00:36.8]} 38... Qe4+ {[%clk
0:00:32.1]} 39. Kg1 {[%clk 0:00:36.2]} 1-0

[Event "*** SCC Grand Prix: Titled Tuesday Blitz"]
[Site "Chess.com"]
[Date "2020.08.04"]
[Round "1"]
[White "TST2014"]
[Black "effefe"]
[Result "1-0"]
[WhiteElo "2512"]
[BlackElo "2094"]
[TimeControl "180+1"]
[EndTime "13:51:29 PDT"]
[Termination "TST2014 won on time"]

1. d4 {[%clk 0:02:57.1]} 1... Nf6 {[%clk 0:02:59.2]} 2. c4 {[%clk 0:02:56.2]}
2... g6 {[%clk 0:02:59.2]} 3. Nc3 {[%clk 0:02:53.8]} 3... Bg7 {[%clk 0:02:59.6]}
4. e4 {[%clk 0:02:53]} 4... d6 {[%clk 0:02:59]} 5. Nf3 {[%clk 0:02:51.3]} 5...
O-O {[%clk 0:02:59.3]} 6. Be2 {[%clk 0:02:51]} 6... e5 {[%clk 0:02:58.9]} 7. O-O
{[%clk 0:02:50.9]} 7... Nc6 {[%clk 0:02:55.2]} 8. d5 {[%clk 0:02:50.9]} 8... Ne7
{[%clk 0:02:55.1]} 9. b4 {[%clk 0:02:51.3]} 9... a5 {[%clk 0:02:51.2]} 10. bxa5
{[%clk 0:02:48.6]} 10... Rxa5 {[%clk 0:02:49.4]} 11. a4 {[%clk 0:02:45.6]} 11...
Nd7 {[%clk 0:02:48.6]} 12. Nd2 {[%clk 0:02:42.7]} 12... Nc5 {[%clk 0:02:46.7]}
13. Nb3 {[%clk 0:02:42.1]} 13... Nxb3 {[%clk 0:02:41.2]} 14. Qxb3 {[%clk
0:02:43]} 14... f5 {[%clk 0:02:40.6]} 15. Ba3 {[%clk 0:02:37.8]} 15... fxe4
{[%clk 0:02:32.9]} 16. Nxe4 {[%clk 0:02:36.9]} 16... Nf5 {[%clk 0:02:33.4]} 17.
Bb4 {[%clk 0:02:25.8]} 17... Nd4 {[%clk 0:02:32.6]} 18. Qb2 {[%clk 0:02:25.7]}
18... Ra6 {[%clk 0:01:59.3]} 19. c5 {[%clk 0:02:22.4]} 19... Nxe2+ {[%clk
0:01:58.8]} 20. Qxe2 {[%clk 0:02:22.7]} 20... Bf5 {[%clk 0:01:55.7]} 21. a5
{[%clk 0:02:16.5]} 21... Bxe4 {[%clk 0:01:46.2]} 22. Qxe4 {[%clk 0:02:15.9]}
22... Rf4 {[%clk 0:01:46.7]} 23. Qb1 {[%clk 0:02:15.5]} 23... e4 {[%clk
0:01:22.1]} 24. Ra3 {[%clk 0:02:05.9]} 24... Bd4 {[%clk 0:01:16.1]} 25. cxd6
{[%clk 0:02:02.1]} 25... cxd6 {[%clk 0:01:06.9]} 26. Bd2 {[%clk 0:02:01.7]}
26... Rf7 {[%clk 0:00:50.4]} 27. Qxe4 {[%clk 0:01:59.4]} 27... Bc5 {[%clk
0:00:44]} 28. Rf3 {[%clk 0:01:55.7]} 28... Rxf3 {[%clk 0:00:32.6]} 29. Qxf3
{[%clk 0:01:53.9]} 29... Qf8 {[%clk 0:00:20.6]} 30. Qb3 {[%clk 0:01:47.6]} 30...
Qf7 {[%clk 0:00:19.6]} 31. g3 {[%clk 0:01:43.2]} 31... Ra8 {[%clk 0:00:19.2]}
32. Kg2 {[%clk 0:01:43.2]} 32... Rf8 {[%clk 0:00:18.9]} 33. Bh6 {[%clk
0:01:26.7]} 33... Re8 {[%clk 0:00:17.7]} 34. Qf3 {[%clk 0:01:22.1]} 34... Qxf3+
{[%clk 0:00:16.1]} 35. Kxf3 {[%clk 0:01:23]} 35... Bb4 {[%clk 0:00:10.8]} 36.
Rb1 {[%clk 0:01:20.8]} 36... Bxa5 {[%clk 0:00:09]} 37. Rxb7 {[%clk 0:01:21.3]}
37... Bc3 {[%clk 0:00:06.4]} 38. Bf4 {[%clk 0:01:18.1]} 38... Be5 {[%clk
0:00:05.7]} 39. Rd7 {[%clk 0:01:16.5]} 39... Rf8 {[%clk 0:00:04.1]} 40. Kg4
{[%clk 0:01:13.4]} 1-0

[Event "*** SCC Grand Prix: Titled Tuesday Blitz"]
[Site "Chess.com"]
[Date "2020.08.04"]
[Round "1"]
[White "Dedic8"]
[Black "guillembaches"]
[Result "1-0"]
[WhiteElo "2800"]
[BlackElo "2410"]
[TimeControl "180+1"]
[EndTime "13:51:38 PDT"]
[Termination "Dedic8 won on time"]

1. e4 {[%clk 0:03:00.9]} 1... c5 {[%clk 0:02:59.6]} 2. Nf3 {[%clk 0:03:01.2]}
2... d6 {[%clk 0:03:00.1]} 3. d4 {[%clk 0:03:01.8]} 3... cxd4 {[%clk 0:03:01]}
4. Nxd4 {[%clk 0:03:02.7]} 4... Nf6 {[%clk 0:03:01.3]} 5. Nc3 {[%clk 0:03:03.3]}
5... Nc6 {[%clk 0:03:01.6]} 6. Bg5 {[%clk 0:03:02.8]} 6... e6 {[%clk 0:03:01.3]}
7. Qd3 {[%clk 0:03:03]} 7... h6 {[%clk 0:03:01.8]} 8. Bxf6 {[%clk 0:03:00.4]}
8... gxf6 {[%clk 0:03:02.7]} 9. O-O-O {[%clk 0:03:00.2]} 9... a6 {[%clk
0:03:02.7]} 10. f4 {[%clk 0:02:59.6]} 10... Bd7 {[%clk 0:03:02.2]} 11. Kb1
{[%clk 0:02:59.3]} 11... Qb6 {[%clk 0:03:01.4]} 12. Nxc6 {[%clk 0:02:57.2]}
12... Bxc6 {[%clk 0:02:56.7]} 13. f5 {[%clk 0:02:56.4]} 13... Qc5 {[%clk
0:02:42.8]} 14. Be2 {[%clk 0:02:55.8]} 14... h5 {[%clk 0:02:41.4]} 15. Bf3
{[%clk 0:02:56.1]} 15... Be7 {[%clk 0:02:35.8]} 16. Ne2 {[%clk 0:02:51.2]} 16...
Bb5 {[%clk 0:02:22.9]} 17. Qd2 {[%clk 0:02:50.9]} 17... Bxe2 {[%clk 0:02:22.5]}
18. Qxe2 {[%clk 0:02:51.8]} 18... h4 {[%clk 0:02:13.8]} 19. Bh5 {[%clk 0:02:27]}
19... e5 {[%clk 0:02:06.8]} 20. Qg4 {[%clk 0:02:19.3]} 20... Bf8 {[%clk
0:01:51.9]} 21. Rd5 {[%clk 0:02:06.6]} 21... Qf2 {[%clk 0:01:49.8]} 22. Rhd1
{[%clk 0:01:47.9]} 22... Rd8 {[%clk 0:01:49.1]} 23. a3 {[%clk 0:01:45.1]} 23...
Ke7 {[%clk 0:01:40.7]} 24. R5d2 {[%clk 0:01:37.5]} 24... Qe3 {[%clk 0:01:33.9]}
25. Qxh4 {[%clk 0:01:25.2]} 25... Bh6 {[%clk 0:01:27.7]} 26. Re2 {[%clk
0:01:07.9]} 26... Qf4 {[%clk 0:01:17.5]} 27. g4 {[%clk 0:01:07.9]} 27... Qf3
{[%clk 0:01:07.2]} 28. Qe1 {[%clk 0:01:00.5]} 28... Qf4 {[%clk 0:00:43.7]} 29.
Qb4 {[%clk 0:00:55.1]} 29... Rd7 {[%clk 0:00:38.1]} 30. Qb3 {[%clk 0:00:46.7]}
30... Kf8 {[%clk 0:00:37.5]} 31. Rxd6 {[%clk 0:00:45.7]} 31... Bg5 {[%clk
0:00:17.5]} 32. Rxd7 {[%clk 0:00:44.1]} 1-0

[Event "*** SCC Grand Prix: Titled Tuesday Blitz"]
[Site "Chess.com"]
[Date "2020.08.04"]
[Round "1"]
[White "Sashadav97"]
[Black "The_Machine04"]
[Result "1-0"]
[WhiteElo "2592"]
[BlackElo "2257"]
[TimeControl "180+1"]
[EndTime "13:51:38 PDT"]
[Termination "Sashadav97 won by checkmate"]

1. d4 {[%clk 0:02:59.3]} 1... d6 {[%clk 0:02:56.3]} 2. Nf3 {[%clk 0:02:55.9]}
2... Nf6 {[%clk 0:02:55.2]} 3. c4 {[%clk 0:02:55.7]} 3... g6 {[%clk 0:02:51.1]}
4. Nc3 {[%clk 0:02:55.6]} 4... Bf5 {[%clk 0:02:51.2]} 5. Nh4 {[%clk 0:02:45.8]}
5... Bd7 {[%clk 0:02:48.6]} 6. Nf3 {[%clk 0:02:45.8]} 6... Bf5 {[%clk
0:02:43.3]} 7. Bg5 {[%clk 0:02:45.2]} 7... Bg7 {[%clk 0:02:39.6]} 8. e3 {[%clk
0:02:45.4]} 8... Ne4 {[%clk 0:02:39.2]} 9. Nxe4 {[%clk 0:02:36.8]} 9... Bxe4
{[%clk 0:02:40.1]} 10. Be2 {[%clk 0:02:37.2]} 10... O-O {[%clk 0:02:38.5]} 11.
O-O {[%clk 0:02:37.3]} 11... h6 {[%clk 0:02:30]} 12. Bh4 {[%clk 0:02:36.5]}
12... Qe8 {[%clk 0:02:18.3]} 13. Nd2 {[%clk 0:02:23.3]} 13... Bf5 {[%clk
0:02:03.5]} 14. Rc1 {[%clk 0:02:18.8]} 14... c5 {[%clk 0:01:52.6]} 15. Nf3
{[%clk 0:02:09.6]} 15... Nc6 {[%clk 0:01:35]} 16. d5 {[%clk 0:02:07.5]} 16...
Nb4 {[%clk 0:01:33.3]} 17. Qb3 {[%clk 0:01:56.6]} 17... Bd7 {[%clk 0:00:54.7]}
18. Bd1 {[%clk 0:01:43.9]} 18... b5 {[%clk 0:00:33.7]} 19. e4 {[%clk 0:01:02.9]}
19... bxc4 {[%clk 0:00:26.2]} 20. Qa3 {[%clk 0:00:59.4]} 20... Nd3 {[%clk
0:00:09.5]} 21. Rxc4 {[%clk 0:00:53]} 21... Nxb2 {[%clk 0:00:09.1]} 22. Rc2
{[%clk 0:00:53.1]} 22... Nxd1 {[%clk 0:00:08.9]} 23. Rxd1 {[%clk 0:00:53.4]}
23... Ba4 {[%clk 0:00:02.8]} 24. Rcc1 {[%clk 0:00:50.2]} 24... Bxd1 {[%clk
0:00:02.9]} 25. Rxd1 {[%clk 0:00:51.1]} 25... Qd7 {[%clk 0:00:03.4]} 26. h3
{[%clk 0:00:49.8]} 26... Bf6 {[%clk 0:00:03.6]} 27. Bg3 {[%clk 0:00:48]} 27...
Kg7 {[%clk 0:00:03.6]} 28. Qe3 {[%clk 0:00:48.3]} 28... Rfb8 {[%clk 0:00:02.4]}
29. e5 {[%clk 0:00:48.5]} 29... dxe5 {[%clk 0:00:02.5]} 30. Nxe5 {[%clk
0:00:49.4]} 30... Qb5 {[%clk 0:00:01.7]} 31. Ng4 {[%clk 0:00:47.8]} 31... Rd8
{[%clk 0:00:01.8]} 32. d6 {[%clk 0:00:46.7]} 32... exd6 {[%clk 0:00:01.3]} 33.
Qxh6+ {[%clk 0:00:46.6]} 33... Kg8 {[%clk 0:00:01.2]} 34. Nxf6# {[%clk
0:00:47.1]} 1-0